Cogmind - Beta 13 X1 @@@ ROGUE MODE // 2023.06.27 @ 06:46:27 Player: maxwell Result: Self-destructed Performance ------------- Evolutions (3) 1500 Regions Visited (6) 1200 Robots Destroyed (97) 485 Value Destroyed (3592) 3592 Prototype IDs (14) 280 Alien Tech Used (0) 0 Bonus (162) 162 TOTAL SCORE: 7219 Bonus ------- High Alert Combat Kills 37 Follower Combat Kills 125 Cogmind --------- Core Integrity 247/700 Matter 21/300 Energy 54/240 System Corruption 4% Temperature Cool (0) Movement Treading (400) Ox3 Location -7/Lower Caves Parts ------- > --- POWER (2) -------- Nuclear Core > --- PROPULSION (3) --- Medium Treads > --- UTILITY (6) ------ Huge Storage Unit Improved Signal Interpreter Improved Targeting Computer > --- WEAPON (2) ------- Heavy Mace > --- INVENTORY (25) --- Nuclear Core Light Treads Medium Treads Medium Treads Medium Treads Improved Sensor Array Transmission Jammer Long-range Tractor Beam Improved Trap Extractor (2/6 Dirty Bomb) Improved Trap Extractor (4/6 Fire) V3-11A's Pendant EM Pulse Cannon EM Pulse Cannon EM Pulse Cannon Enhanced Autogun Heavy Battle Rifle Subdweller Shrapnel Launcher Multitool Peak State ------------ > --- POWER ------------ Reinforced Deuterium Engine Micro Nuclear Core > --- PROPULSION ------- Medium Treads Armored Huge Wheel > --- UTILITY ---------- Huge Storage Unit Improved Signal Interpreter Kinecellerator Heavy Armor Plating Improved Shield Generator > --- WEAPON ----------- Enhanced Autogun Enhanced Autogun > --- INVENTORY -------- Light Nuclear Core Micro Nuclear Core Micro Nuclear Core Medium Treads Medium Treads Medium Treads Improved Cooling System Improved Sensor Array Improved Sensor Array Particle Charger Transmission Jammer Heavy Armor Plating Improved Shield Generator Long-range Tractor Beam Improved Trap Extractor Improved Trap Extractor V3-11A's Pendant Shock Rifle Arc Projector Arc Projector Subdweller Shrapnel Launcher Multitool Heavy Mace [Rating: 54] Favorites ----------- Power Light Ion Engine Engine Light Ion Engine Power Core Micro Nuclear Core Propulsion Light Treads Treads Light Treads Leg Aluminum Leg Wheel Armored Huge Wheel Utility High-capacity Storage Unit Device V3-11A's Pendant Storage High-capacity Storage Unit Processor Improved Signal Interpreter Protection Makeshift Armor Plating Weapon Enhanced Autogun Energy Gun Improved EM Shotgun Energy Cannon Subdweller Beam Cannon Ballistic Gun Enhanced Autogun Launcher Subdweller Shrapnel Launcher Impact Weapon Heavy Mace Build | -11 -10 -10 -10 -8 -7 -7 ------- Run | Jun Mat Min Sub Mat Fac Low Slots Evolved 6 | . . . . 4 2 . Power 1 | . . . . . 1 . Propulsion 1 | . . . . . 1 . Utility 4 | . . . . 4 . . Weapon . | . . . . . . . Parts Attached 118 | . 7 1 22 37 23 28 Power 7 | . . . . 2 4 1 Engine 4 | . . . . 2 2 . Core 3 | . . . . . 2 1 Reactor . | . . . . . . . Propulsion 14 | . 2 . 3 5 4 . Treads 10 | . 2 . 2 3 3 . Leg . | . . . . . . . Wheel 4 | . . . 1 2 1 . Hover . | . . . . . . . Flight . | . . . . . . . Utility 49 | . 2 1 6 13 10 17 Device 27 | . . . 1 3 6 17 Storage 3 | . 1 . 1 1 . . Processor 2 | . . . . 1 1 . Hackware . | . . . . . . . Protection 17 | . 1 1 4 8 3 . Artifact . | . . . . . . . Weapon 48 | . 3 . 13 17 5 10 Energy Gun 9 | . 3 . 1 5 . . Energy Cannon 4 | . . . 3 1 . . Ballistic Gun 24 | . . . 7 9 3 5 Ballistic Cannon . | . . . . . . . Launcher 7 | . . . 2 2 . 3 Special Weapon . | . . . . . . . Impact Weapon 4 | . . . . . 2 2 Slashing Weapon . | . . . . . . . Piercing Weapon . | . . . . . . . Special Melee Weapon . | . . . . . . . Unidentified Prototypes 4 | . 1 . 1 2 . . Parts Lost 30 | . . 1 4 8 5 12 Power 4 | . . . . 2 . 2 Propulsion 6 | . . . 2 3 . 1 Utility 16 | . . 1 1 2 5 7 Weapon 4 | . . . 1 1 . 2 Highest Loss Streak 6 | . . 1 1 3 2 6 To Critical Strikes . | . . . . . . . Average Slot Usage (%) 93 | . 97 100 94 94 85 90 Engine 11 | . 14 14 14 8 5 10 Core 1 | . . . . . 7 3 Treads 21 | . 25 28 27 11 12 7 Wheel 2 | . . . . 6 4 6 Device 8 | . . . 10 8 9 15 Storage 8 | . 14 14 8 9 7 7 Processor 2 | . . . . 1 7 15 Protection 10 | . 12 14 5 30 11 5 Energy Gun 5 | . 26 28 2 3 . . Energy Cannon 1 | . . . 2 . . . Ballistic Gun 16 | . . . 23 14 14 13 Naked Turns . | . . . . . . . Heaviest Build 134 | 11 56 56 56 114 134 121 Greatest Support 76 | 20 40 40 40 40 76 28 Greatest Overweight (x) 7 | . 1 1 2 7 4 4 Average Overweight (x) 1 | . . 1 . 3 3 3 Largest Inventory Capacity 25 | . 20 20 20 25 25 25 Average Capacity 19 | . 16 20 13 24 25 25 Most Carried 25 | . 9 8 20 25 25 23 Average Carried 15 | . 7 7 11 23 24 21 Final Capacity 25 | 8 20 20 20 25 25 25 Final Carried 25 | 6 8 8 20 25 24 18 Class Distribution -------------------- 79% | Mutant 11% | Derelict-Mutant 8% | Scavenger-Mutant Dominant Class ---------------- Mutant | -10/Materials Mutant | -10/Mines Mutant | -10/Subcaves Mutant | -8/Materials Mutant | -7/Factory Mutant | -7/Lower Caves Resources | -11 -10 -10 -10 -8 -7 -7 ----------- Run | Jun Mat Min Sub Mat Fac Low Matter Collected 3361 | 200 70 10 627 811 1151 492 Remotely 298 | . . . . . 298 . Salvage Created 4278 | . 283 383 655 1270 1249 438 Parts 224 | . 20 17 40 64 69 14 Haulers Intercepted 6 | . 1 . . 4 1 . Recyclers Shooed 1 | . . . . . 1 . Parts Field Recycled . | . . . . . . . Retrieved Matter . | . . . . . . . Parts Self-Destructed 28 | . . . 16 . . 12 Prevented 1 | . . . . . . 1 Kills | -11 -10 -10 -10 -8 -7 -7 ------- Run | Jun Mat Min Sub Mat Fac Low Combat Hostiles Destroyed 84 | . 5 9 16 18 23 13 Melee 3 | . . . . . 2 1 Guns 63 | . 5 9 6 16 20 7 Cannons 4 | . . . 4 . . . AOE 10 | . . . 3 2 . 5 Classes Destroyed 17 | . 5 2 5 3 2 . Worker 2 | . 1 . . . 1 . Tunneler 1 | . . . . . 1 . Hauler 6 | . 1 . . 4 1 . Recycler 2 | . . 1 . 1 . . Turret 2 | . . . 2 . . . Watcher 5 | . 2 . . 2 1 . Swarmer 12 | . 3 . 3 . 2 4 Grunt 35 | . 2 4 . 10 12 7 Brawler 2 | . . . . 1 1 . Duelist 2 | . . . . 2 . . Sentry 8 | . . . 1 4 2 1 Hunter 2 | . . . . 1 . 1 Programmer 6 | . . . . . 6 . Artisan 2 | . . . 2 . . . Cobbler 1 | . . . 1 . . . Subdweller 12 | . . . 12 . . . Assembled 5 | . . 5 . . . . Best Kill Streak 6 | . 4 2 4 4 6 3 Combat Bots Only 6 | . 3 2 2 3 6 3 Max Kills in Single Turn 2 | . 1 1 1 2 2 2 Gunslinging 1 | . . . . . 1 . Exploded 2 | . . . 1 2 . 2 Melee 1 | . . . . . 1 1 Uniques/NPCs Destroyed . | . . . . . . . Combat | -11 -10 -10 -10 -8 -7 -7 -------- Run | Jun Mat Min Sub Mat Fac Low Damage Taken 6347 | . 119 410 1111 1675 1686 1346 Core 784 | . 41 61 95 134 151 302 Absorbed by Shields 731 | . . . . . 381 350 Redirected to Shielding 101 | . . . . 43 58 . Core Remaining (%) 65 | 100 . . 21 75 . . Volleys Fired 396 | . 11 26 97 107 109 46 Largest 2 | . 2 2 2 2 2 2 Hottest 110 | . 90 90 105 110 50 50 Shots Fired 716 | . 22 52 130 211 216 85 Gun 665 | . 22 52 94 203 216 78 Cannon 31 | . . . 25 6 . . Launcher 20 | . . . 11 2 . 7 Special . | . . . . . . . Kinetic 566 | . . . 83 182 216 85 Thermal 31 | . . . 25 6 . . Explosive . | . . . . . . . Electromagnetic 119 | . 22 52 22 23 . . Robot Hit Streak 17 | . 8 17 13 11 10 9 Robot Miss Streak 7 | . 2 7 2 5 4 3 Penetration Max . | . . . . . . . Secondary Targets 6 | . . . . 1 4 1 Max Gunslinging Chain 1 | . . . . 1 1 1 Shots Hit Robots 449 | . 15 34 66 140 137 57 Core Hits 196 | . 13 23 31 49 51 29 Critical Kills 6 | . . . 2 3 1 . Critical Parts Destroyed 5 | . . . . 2 2 1 Critical Strikes 11 | . . . 2 5 3 1 Meltdown 2 | . . . 2 . . . Destroy 7 | . . . . 5 1 1 Smash 2 | . . . . . 2 . Melee Attacks 16 | . . . . . 7 9 Impact 16 | . . . . . 7 9 Slashing . | . . . . . . . Piercing . | . . . . . . . Sneak Attacks . | . . . . . . . Combat Hostiles . | . . . . . . . Follow-up Attacks . | . . . . . . . Damage Inflicted 9751 | . 346 575 1915 2579 2773 1563 Guns 7286 | . 301 540 738 2346 2558 803 Cannons 461 | . . . 435 26 . . Explosions 1607 | . 45 . 741 204 . 617 Melee 319 | . . . . . 178 141 Ramming 78 | . . 35 1 3 37 2 Kinetic 7319 | . . . 1060 2281 2558 1420 Thermal 618 | . 45 . 505 68 . . Explosive . | . . . . . . . Electromagnetic 1417 | . 301 540 349 227 . . Impact 319 | . . . . . 178 141 Slashing . | . . . . . . . Piercing . | . . . . . . . Highest Corruption 4 | . . . . . 4 4 Average Corruption 3 | . . . . . 2 4 Corruption Purged . | . . . . . . . Corruption Blocked . | . . . . . . . Effects 49 | . . . . . 21 28 Message Errors 7 | . . . . . 4 3 Matter Fused 9 | . . . . . 3 6 Heat Flow Errors 6 | . . . . . 1 5 Energy Discharges 8 | . . . . . 5 3 Parts Rejected 1 | . . . . . . 1 Data Loss (minor) 9 | . . . . . 3 6 Data Loss (major) 2 | . . . . . 1 1 Misfires 3 | . . . . . 1 2 Alerts 1 | . . . . . 1 . Weapon Failures 3 | . . . . . 2 1 Overload Shots . | . . . . . . . Overflow Damage 108 | . 2 . 12 . 48 46 Projectiles . | . . . . . . . Explosions 23 | . 2 . 12 . . 9 Melee 85 | . . . . . 48 37 Knockbacks . | . . . . . . . Impact . | . . . . . . . Kinetic . | . . . . . . . Secondary . | . . . . . . . Self-Inflicted Damage 145 | . 22 . 15 35 14 59 Shots 4 | . 1 . 1 1 . 1 Rammed 15 | . . 5 . 4 4 2 Targets Rammed 17 | . . 6 1 4 4 2 Kicked . | . . . . . . . Crushed 2 | . . 1 1 . . . Highest Temperature 395 | . 141 234 48 395 311 288 Average Temperature 89 | . 48 81 19 100 93 102 Received Heat Transfer 1901 | . 24 69 144 801 631 232 Effects 8 | . . 1 . 2 5 . Shutdowns 1 | . . . . 1 . . Energy Bleed 5 | . . 1 . 1 3 . Interference 2 | . . . . . 2 . Siege Activations . | . . . . . . . Robots Corrupted 1 | . . . 1 . . . Combat Hostiles 1 | . . . 1 . . . Parts Fried 10 | . 4 . 4 1 1 . Impact Corruptions 4 | . . . . . 2 2 Robots Melted 2 | . . . 2 . . . Combat Hostiles 2 | . . . 2 . . . Parts Melted 6 | . . . 6 . . . Heat Transferred 829 | . 50 . 692 87 . . Parts Sabotaged . | . . . . . . . Parts Stolen . | . . . . . . . Parts Stripped . | . . . . . . . Power Chain Reactions 4 | . 1 . 2 1 . . Missiles Intercepted . | . . . . . . . Alert | -11 -10 -10 -10 -8 -7 -7 ------- Run | Jun Mat Min Sub Mat Fac Low Peak Influence 455 | . 179 184 . 270 455 . Initial 69 | . . 69 . . 65 . Average 103 | . 80 24 . 116 145 . Maximum Alert Level 2 | . . . . 1 2 . Low Security (%) 86 | . 100 100 . 92 69 . Level 1 11 | . . . . 7 23 . Level 2 2 | . . . . . 6 . Level 3 . | . . . . . . . Level 4 . | . . . . . . . Level 5 . | . . . . . . . High Security . | . . . . . . . Max Security . | . . . . . . . Squads Dispatched 15 | . . . . 1 14 . Investigation 3 | . . . . . 3 . Extermination 5 | . . . . . 5 . Reinforcement 4 | . . . . 1 3 . Assault . | . . . . . . . Garrison 3 | . . . . . 3 . Intercept . | . . . . . . . Searches Triggered . | . . . . . . . Construction Impeded . | . . . . . . . Haulers Reinforced . | . . . . . . . Active Scanning Responses . | . . . . . . . Cargo Convoy Interrupts . | . . . . . . . Stealth | -11 -10 -10 -10 -8 -7 -7 --------- Run | Jun Mat Min Sub Mat Fac Low Distress Signals 2 | . . 1 . 1 . . Communications Jammed . | . . . . . . . Distress Signals . | . . . . . . . Times Spotted 136 | . 9 9 34 31 36 17 Peak Tracking Total 6 | . 4 2 5 6 6 4 Tactical Retreats 4 | . . . 1 1 1 1 Traps | -11 -10 -10 -10 -8 -7 -7 ------- Run | Jun Mat Min Sub Mat Fac Low Traps Triggered 2 | . . . 1 . 1 . Indirectly . | . . . . . . . Trap Hack Attempts . | . . . . . . . Triggered . | . . . . . . . Disarmed . | . . . . . . . Reprogrammed . | . . . . . . . Reused . | . . . . . . . Traps Extracted 6 | . . . . . . 6 Installed . | . . . . . . . Triggered . | . . . . . . . Most Traps Carried 6 | . . . . . . 6 Machines | -11 -10 -10 -10 -8 -7 -7 ---------- Run | Jun Mat Min Sub Mat Fac Low Machines Disabled 7 | . . . 3 3 1 . Max in Single Turn 3 | . . . 3 2 1 . Machines Repaired . | . . . . . . . Machines Sabotaged . | . . . . . . . Overloaded Fab Kills . | . . . . . . . Hacking | -11 -10 -10 -10 -8 -7 -7 --------- Run | Jun Mat Min Sub Mat Fac Low Machines Accessed 14 | . . . 2 2 9 1 Terminals 7 | . . . . 1 6 . Fabricators 1 | . . . . . 1 . Repair Stations . | . . . . . . . Recycling Units . | . . . . . . . Scanalyzers 1 | . . . . 1 . . Garrison Access 2 | . . . . . 2 . Total Hacks 33 | . . . 3 12 17 1 Successful 17 | . . . 3 10 3 1 Failed 16 | . . . . 2 14 . Catastrophic 7 | . . . . . 7 . Database Lockouts . | . . . . . . . Manual 14 | . . . . 2 12 . Terminals 14 | . . . . 2 12 . Fabricators 1 | . . . . . 1 . Repair Stations . | . . . . . . . Recycling Units . | . . . . . . . Scanalyzers 10 | . . . . 10 . . Garrison Access 4 | . . . . . 4 . Terminal Hacks 4 | . . . 3 . . 1 Record 2 | . . . 2 . . . Open Door 1 | . . . . . . 1 Derelict Proto ID Bank 1 | . . . 1 . . . Fabricator Hacks . | . . . . . . . Repair Station Hacks . | . . . . . . . Recycling Unit Hacks . | . . . . . . . Scanalyzer 9 | . . . . 9 . . Insert Component 5 | . . . . 5 . . Analyze 4 | . . . . 4 . . Garrison Access Hacks . | . . . . . . . Unauthorized Hacks 4 | . . . . 1 3 . Terminals 4 | . . . . 1 3 . Botnet 4 | . . . . 1 3 . Fabricators . | . . . . . . . Repair Stations . | . . . . . . . Recycling Units . | . . . . . . . Scanalyzers . | . . . . . . . Garrison Access . | . . . . . . . Data Cores Recovered . | . . . . . . . Used . | . . . . . . . Hacking Detections 11 | . . . . 2 9 . Full Trace Events 2 | . . . . . 2 . Feedback Events . | . . . . . . . Feedback Blocked . | . . . . . . . Robot Schematics Acquired . | . . . . . . . Robots Built . | . . . . . . . Authchips . | . . . . . . . Time . | . . . . . . . Total Robot Build Rating . | . . . . . . . Part Schematics Acquired 4 | . . . . 4 . . Parts Built . | . . . . . . . Authchips . | . . . . . . . Time . | . . . . . . . Total Part Build Rating . | . . . . . . . Parts Repaired . | . . . . . . . Time . | . . . . . . . Parts Recycled . | . . . . . . . Recycled Matter . | . . . . . . . Retrieved Matter . | . . . . . . . Retrieved Components . | . . . . . . . Parts Scanalyzed 5 | . . . . 5 . . Part Schematics Acquired 4 | . . . . 4 . . Parts Damaged . | . . . . . . . Bothacking | -11 -10 -10 -10 -8 -7 -7 ------------ Run | Jun Mat Min Sub Mat Fac Low Used RIF Installer . | . . . . . . . Robots Hacked . | . . . . . . . Non-combat . | . . . . . . . Combat . | . . . . . . . Robot Hacks Applied . | . . . . . . . Relay Couplers Released . | . . . . . . . Fabnet Peak Effective % . | . . . . . . . Robots Rewired . | . . . . . . . Allies Hacked . | . . . . . . . Hacks Repelled . | . . . . . . . Allies | -11 -10 -10 -10 -8 -7 -7 -------- Run | Jun Mat Min Sub Mat Fac Low Total Allies 5 | . . . 5 . . . Largest Group 3 | . . . 3 3 . . Highest-Rated Group 57 | . . . 57 57 . . Highest-Rated Ally 19 | . . . 19 19 . . Total Orders . | . . . . . . . Ally Attacks 30 | . . . 8 22 . . Total Damage 485 | . . . 166 319 . . Kills 5 | . . . 4 1 . . Allies Corrupted . | . . . . . . . Allies Melted . | . . . . . . . Intel | -11 -10 -10 -10 -8 -7 -7 ------- Run | Jun Mat Min Sub Mat Fac Low Robot Analysis Total . | . . . . . . . Derelict Logs Recovered 4 | . . 1 1 . . 2 Drone Launches . | . . . . . . . Drone Recoveries . | . . . . . . . Exploration | -11 -10 -10 -10 -8 -7 -7 ------------- Run | Jun Mat Min Sub Mat Fac Low Turns Passed 14155 | . 367 1519 6546 1936 2427 1360 Spaces Moved 6251 | 1 153 582 3003 677 1102 733 Core . | . . . . . . . Treads 4286 | . 131 582 3003 218 352 . Legs 23 | 1 22 . . . . . Wheels 1942 | . . . . 459 750 733 Hover . | . . . . . . . Flight . | . . . . . . . Fastest Speed 120 | 120 120 240 160 120 145 145 Average Speed 200 | 120 200 240 206 212 185 152 Slowest Speed 360 | 120 240 240 360 320 240 160 Overloaded Moves . | . . . . . . . Propulsion Burnouts . | . . . . . . . Robots Hopped . | . . . . . . . Cave-ins Triggered . | . . . . . . . Exploration Rate (%) 52 | 2 43 69 93 49 36 73 Regions Visited 6 Branch Regions 3 Pre-discovered Areas . | . . . . . . . Known Exits Taken 2 | . . . . 1 1 . Unknown Exits Taken 4 | 1 1 1 1 . . . Scrap Searched 22 | . . 1 19 . . 2 Spaces Dug 32 | . . . 11 20 1 . Terrain Destroyed 212 | . 3 . 96 44 1 68 Melee 1 | . . . . . 1 . Projectile 12 | . . . 2 10 . . AOE 199 | . 3 . 94 34 . 68 Terrain Rammed . | . . . . . . . Walls Destroyed . | . . . . . . . Machines Disabled . | . . . . . . . Actions | -11 -10 -10 -10 -8 -7 -7 --------- Run | Jun Mat Min Sub Mat Fac Low Total 7272 | . 193 645 3218 992 1337 887 Wait 319 | . 10 30 55 105 51 68 Move 6245 | . 152 581 3002 676 1101 733 Hop . | . . . . . . . Pick Up 81 | . 5 1 21 33 20 1 Fast Attach 26 | . 4 . 8 10 3 1 Attach 33 | . 2 1 4 12 7 7 Detach 4 | . 1 . 1 1 1 . Swap 59 | . 1 . 10 15 13 20 Drop 67 | . 7 . 10 29 21 . Fire 396 | . 11 26 97 107 109 46 Melee 16 | . . . . . 7 9 Ram 2 | . . . . 1 1 . Kick . | . . . . . . . Crush 15 | . . 6 1 3 3 2 Escape Stasis . | . . . . . . . Rewire . | . . . . . . . Trap . | . . . . . . . Miscellaneous 9 | . . . 9 . . . Route ------- -11/Junkyard -10/Materials -10/Mines (discovered 3 exits: [*Mat x2] / *Sub) -10/Subcaves (discovered 3 exits: [*Mat] / *Mat / [*Rec]) -8/Materials -7/Factory (discovered 3 exits: *Fac x2 / *Low) -7/Lower Caves History --------- Turn | Location | Event 1 | -11/Junkyard | Discovered new exit (range 0) 1 | -11/Junkyard | Entered Materials 315 | -10/Materials | Build established: Mutant 334 | -10/Materials | Discovered new exit (range 14) 368 | -10/Materials | Entered Mines 409 | -10/Mines | Discovered new exit (range 11) 642 | -10/Mines | Discovered new exit (range 8) 660 | -10/Mines | Assembled infested the area 665 | -10/Mines | Assisted by a Guerilla fighting off Assembled 1826 | -10/Mines | A weapon hastily lodged in a ceiling crevice suddenly fell to the ground 1849 | -10/Mines | Discovered new exit (range 7) 1887 | -10/Mines | Entered Subcaves 2020 | -10/Subcaves | Shifting Twisted Machinery released Sub. Beam Cannon 2023 | -10/Subcaves | Shifting Twisted Machinery released Battle Cannon 2163 | -10/Subcaves | Learned Materials terminal intel 2296 | -10/Subcaves | Shifting Twisted Machinery released Flamer 2432 | -10/Subcaves | Discovered new exit (range 13) 2565 | -10/Subcaves | Core integrity fell below 50% 2601 | -10/Subcaves | Discovered new exit (range 10) 2945 | -10/Subcaves | A swath of the cavern ceiling suddenly collapsed 3031 | -10/Subcaves | Build established: Derelict-Mutant 3211 | -10/Subcaves | Discovered new exit (range 15) 3659 | -10/Subcaves | Build established: Mutant 3692 | -10/Subcaves | Visited triangular shrine 3702 | -10/Subcaves | Found Prototype Device 3702 | -10/Subcaves | Identified V3-11A's Pendant 3707 | -10/Subcaves | Befriended Subdweller 4220 | -10/Subcaves | Build established: Derelict-Mutant 4458 | -10/Subcaves | Ambushed by angry Subdweller bent on revenge 4472 | -10/Subcaves | Shifting Twisted Machinery released Battle Rifle 4507 | -10/Subcaves | Befriended Subdweller 4875 | -10/Subcaves | Build established: Mutant 6491 | -10/Subcaves | Disturbed a concealed Subdweller 6492 | -10/Subcaves | Befriended Subdweller 6492 | -10/Subcaves | Befriended Subdweller 6502 | -10/Subcaves | Befriended Subdweller 7158 | -10/Subcaves | Visited Clippyterm 8279 | -10/Subcaves | Visited 4L-MR0's lab 8433 | -10/Subcaves | Entered Materials 8433 | -8/Materials | Accompanied by 3 allies 8433 | -8/Materials | Evolved 4 slots: Utility x4 8434 | -8/Materials | Loaded intel: 12 terminal locations 8947 | -8/Materials | Lost 3 parts (1n2u) 9349 | -8/Materials | Discovered new exit (range 16) 10366 | -8/Materials | Identified exit to Factory 10369 | -8/Materials | Entered Factory 10369 | -7/Factory | Evolved 2 slots: Power x1, Propulsion x1 10390 | -7/Factory | Build established: Scavenger-Mutant 10708 | -7/Factory | Build established: Mutant 11850 | -7/Factory | Garrison activated, responded to threat 11911 | -7/Factory | Discovered new exit (range 5) 11917 | -7/Factory | Identified exit to Factory 12752 | -7/Factory | Discovered exit to Factory (range 11) 12790 | -7/Factory | Discovered new exit (range 4) 12794 | -7/Factory | Build established: Scavenger-Mutant 12795 | -7/Factory | Identified exit to Lower Caves 12796 | -7/Factory | Entered Lower Caves 13573 | -7/Lower Caves | Attracted the attention of an 0b10 checkpoint 13626 | -7/Lower Caves | Learned Factory stockpile data 13755 | -7/Lower Caves | Build established: Mutant 13964 | -7/Lower Caves | Lost 4 parts (3u1w) 14151 | -7/Lower Caves | Core integrity fell below 50% 14156 | -7/Lower Caves | Self-destructed Last Messages --------------- Data stored: Upper Caves entrances (x1). 14037_ Searching scrap... 14037_ Found Hvy. Battle Rifle. 14037_ Found 40 Matter. 14038_ Acquired 40 matter. 14056_ Acquired Hvy. Battle Rifle. 14068_ System corrupted: Matter fused (-5). 14116_ G-47 Trooper suffers critical hit (Destroy). 14116_ Destroyed Particle Gun. 14120_ System corrupted: Matter fused (-6). 14132_ Slammed into L-41 Fighter. 14138_ Arm. Huge Wheel destroyed. 14139_ Imp. Deuterium Engine destroyed. 14146_ Enh. Autogun destroyed. 14150_ System corrupted: Component data lost. 14152_ Imp. Cooling System destroyed. 14152_ Hardlight Generator destroyed. 14152_ Imp. Shield Generator destroyed. 14153_ Destroyed Imp. Melee Analysis Suite. 14153_ L-41 Fighter system corrupted by crushing effect. Map ----- +----------------------------------------------------+ | ?????????????????????????## #????## " | | ????????????????????????## #??###"""" | | ????????????????????????# ##??# | | ????????????????????????# #???# | | ????????????????????????# ##??# """" | | ????????????????????????# ##?# ## # | | ????????????????????????## ### ##### | | ????????????????????###??# ##??## | | ??????????????????##//#?## #??## #"" | | ??????????????????# //### #?## #### | | ??????????????????# ### ### #?# ##### | | ??????????????????# # ##### #?# ##?# | | ??????????????????#X##### # ## #?## ##??# | | ??????????????????###???### ##?## ##??## | | ??????????????????????????## ##??# #???# | | ???????????????????????????### #???# ##??# | | ?????????????????????????????### #???# ##?# | | ???????????????????????????????####???# #### | | ????????????????????????????#######???## #?# | | ???????????????????????????# ##???# ### | | ?????????????????????#??### #?### ## | | ???????????## ???????# ?# #?# #### | | ???????? ##???# ?# #??# ####??? | | ???????? ## ## #### #?????? | | ???????? g ##???? | | ??????????????# g @ #### #??? | | ??????????????## ##### l ##?# #?? | | ???????????????##????## #### ## | | ?????????????????????# #?## | | ?????????????????????# #### # | | ?????????????????????# ## ## | | ?????????????????????# #? | | ?????????????????????## ## ## # | | ??????????????????????## ### ## ###?# # | | ???????????????????????# #?## ### ##????# ### | | ???????????????????????# #??## #?# #??????##?? | | ???????????????????????# #??## ## ##????????? | | ??????????????????????## #?## ## ##???????? | | ?????????????????????## #?# # #???????? | | ????????????????###### ###?# ###??????? | | ?????????????# ######### #??????? | | ????????????# ### ### #??????## # ###????? | | ??????????? ???????# ??## #???????#### ###??? | | ????????????????????#????## ############ #??# | | ??????????????????????????# # #??# | | ??????????????????????????# # ##??# | | ??????????????????????????# #################???# | | ??????????????????????????# #???????????????????# | | ??????????????????????????# #???????????????????? | | ??????????????????????????# #???????????????????? | +----------------------------------------------------+ Best States ------------- Heat Dissipation 61 Coolant Potential 50 Energy Generation 27 Energy Capacity 480 Matter Stores 300 Matter Capacity 300 Sight Range 16 Robot Scan Range 15 Terrain Scan Density 10 Armor Coverage 800 Weapon Shielding 66 Evasion (%) 50 Targeting Accuracy 6 Recoil Reduction 3 Particle Charging 15 Kinecelleration 30 Trap Extractor Capacity 6 Item Schematics ----------------- Multitool | -8/Materials | Scanalyzed Enh. Autogun | -8/Materials | Scanalyzed Imp. Sensor Array | -8/Materials | Scanalyzed Particle Charger | -8/Materials | Scanalyzed Robot Schematics ------------------ None Fabricated ------------ Nothing Alien Tech Used ----------------- None Achievements -------------- None Challenges ------------ None Game ------ Seed ContainmentSlugBroadsword Manual? 0 Play Time 00:51:09 Cumulative 369.7 hours Start 2023.06.26 @ 15:57:23 End 2023.06.27 @ 06:46:27 Sessions 3 Manual Loads 0 Difficulty Rogue Special Mode None Game No. 534 Rogue 507 Adventurer 4 Explorer 23 Win Type - Total 20 Types 14/0/2/2/1/0/0/1/0 Lore% 79 Gallery% 91 Achievement% 83 Wizard Run 0 Options --------- ASCII 0 Keyboard 1 Movement Numpad Keybinds 0 Fullscreen 1 Font 18/SmallcapsGlow Map View 76x50 Tactical HUD 1 Map Filters NONE Filters NONE Steam 1 RUN: 2b3daece-669b-4332-85fa-7e4fa383ad1e